bitfinex-derivatives/quotes_BTCF0:USTF0_20251208
["timestamp","ask_amount","ask_price","bid_price","bid_amount"]
[1765199524625,0.0561,92099.0,92098.0,0.0108571]
[1765199525436,0.0561,92099.0,92098.0,0.0138571]
[1765199526344,0.0561,92099.0,92098.0,0.003]
[1765199527638,0.0561,92096.0,92095.0,0.00016283]
[1765199528041,0.01719,92100.0,92076.0,0.0660097]
[1765199528042,0.0561,92077.0,92076.0,0.0660097]
[1765199528234,0.0561,92077.0,92076.0,0.0108597]
[1765199528438,0.0389101,92073.0,92064.0,0.0281334]
[1765199528734,0.0561,92065.0,92064.0,0.0389945]
[1765199529243,0.0561,92065.0,92064.0,0.0109745]
[1765199530136,0.0561,92065.0,92064.0,0.0129745]
[1765199531041,0.0561,92056.0,92055.0,0.01102502]
[1765199531243,0.0561,92056.0,92055.0,0.00016292]
[1765199532137,0.00010862,92056.0,92055.0,0.05704292]
[1765199532537,0.00110862,92056.0,92055.0,0.06904292]
[1765199534546,0.12664,92096.0,92073.0,0.01086]
[1765199534733,0.0108577,92093.0,92073.0,0.06754]
[1765199534937,0.010858,92090.0,92073.0,0.06754]
[1765199535341,0.02938292,92074.0,92073.0,0.06754]
[1765199535542,0.05661292,92074.0,92073.0,0.06754]
[1765199536049,0.00016292,92074.0,92073.0,0.06854]
[1765199536837,0.00016292,92074.0,92073.0,0.06954]
[1765199537351,0.00016292,92074.0,92073.0,0.07154]
[1765199537849,0.00116292,92074.0,92073.0,0.07254]
[1765199543058,0.0838852,92114.0,92113.0,0.05668]
[1765199543355,0.05645,92110.0,92109.0,0.02782]
[1765199543856,0.05645,92105.0,92104.0,0.0386763]
[1765199545868,0.05945,92105.0,92104.0,0.0386763]
[1765199546166,0.05945,92105.0,92104.0,0.0675363]
[1765199546665,0.06045,92105.0,92104.0,0.0675363]
[1765199547858,0.06045,92105.0,92098.0,0.00016292]
[1765199547859,0.0148562,92105.0,92098.0,0.00016292]
[1765199548065,0.067307,92099.0,92098.0,0.00016292]
[1765199548262,0.05645,92077.0,92076.0,0.05668]
[1765199548664,0.01658,92080.0,92077.0,0.0108595]
[1765199548967,0.01658,92080.0,92060.0,0.11683494]
[1765199548968,0.05645,92064.0,92063.0,0.0108612]
[1765199549858,0.05645,92064.0,92063.0,0.0386812]
[1765199550159,0.05645,92064.0,92063.0,0.0675412]
[1765199551356,0.05645,92064.0,92063.0,0.0705412]
[1765199552365,0.05645,92064.0,92063.0,0.0725412]
[1765199558173,0.05645,92064.0,92063.0,0.005]
[1765199559658,0.05645,92064.0,92063.0,0.06168]
[1765199560065,0.05645,92064.0,92063.0,0.005]
[1765199560270,0.00016292,92073.0,92063.0,0.005]
[1765199560271,0.00016292,92073.0,92072.0,0.0108601]
[1765199560479,0.05661292,92073.0,92072.0,0.0675401]
[1765199560674,0.05661292,92073.0,92072.0,0.0108601]
[1765199561475,0.05661292,92073.0,92072.0,0.0128601]
[1765199562176,0.05661292,92073.0,92072.0,0.0138601]
[1765199562779,0.05661292,92073.0,92054.0,0.02920976]
[1765199562780,0.05828,92060.0,92054.0,0.02920976]
[1765199562966,0.0691421,92055.0,92054.0,0.00016292]
[1765199564375,0.0701421,92055.0,92054.0,0.00616292]
[1765199567177,0.0701421,92055.0,92054.0,0.00916292]
[1765199569772,0.05828,92036.0,92035.0,0.03991134]
[1765199569977,0.07592,92034.0,92033.0,0.0108647]
[1765199570176,0.05828,92031.0,92030.0,0.02904684]
[1765199570472,0.05828,92029.0,92028.0,0.0389752]
[1765199570869,0.05828,92029.0,92028.0,0.0680652]
[1765199571370,0.05828,92029.0,92028.0,0.0108652]
[1765199571679,0.06028,92029.0,92028.0,0.0278652]
[1765199571871,0.06028,92029.0,92028.0,0.0850652]
[1765199572974,0.06128,92029.0,92028.0,0.0930652]
[1765199573171,0.06128,92029.0,92028.0,0.025]
[1765199575779,0.06128,92029.0,92028.0,0.0822]
[1765199577871,0.003,92029.0,92028.0,0.0822]
[1765199580583,0.00016292,92038.0,92037.0,0.0664043]
[1765199581079,0.0108617,92059.0,92037.0,0.0664043]
[1765199581287,0.0668517,92059.0,92058.0,0.0660518]
[1765199581479,0.066852,92056.0,92055.0,0.0108621]
[1765199581677,0.02849,92041.0,92040.0,0.0951566]
[1765199581875,0.05599,92041.0,92040.0,0.0386239]
[1765199582179,0.05599,92041.0,92040.0,0.0108639]
[1765199582578,0.0108639,92040.0,92037.0,0.0218642]
[1765199582781,0.05599,92038.0,92037.0,0.0288642]
[1765199583374,0.05599,92038.0,92037.0,0.0108642]
[1765199583985,0.05799,92038.0,92037.0,0.0228642]
[1765199584377,0.05799,92038.0,92037.0,0.0308642]
[1765199584884,0.05799,92038.0,92037.0,0.02]
[1765199585580,0.05799,92038.0,92037.0,0.04776]
[1765199586388,0.05799,92038.0,92037.0,0.02]
[1765199588472,0.05799,92038.0,92037.0,0.04776]
[1765199588678,0.05799,92038.0,92037.0,0.07519]
[1765199590382,0.002,92038.0,92037.0,0.07519]
[1765199591794,0.02766292,92050.0,92049.0,0.0660529]
[1765199591989,0.05615292,92050.0,92049.0,0.0108629]
[1765199592182,0.00016292,92050.0,92049.0,0.0695229]
[1765199592483,0.00016292,92050.0,92049.0,0.09867925]
[1765199592691,0.00016292,92050.0,92049.0,0.10839804]
[1765199592986,0.00016292,92050.0,92049.0,0.0725229]
[1765199593589,0.00016292,92050.0,92049.0,0.0775229]
[1765199593888,0.00116292,92050.0,92049.0,0.0775229]
[1765199596481,0.05918,92071.0,92070.0,0.0695204]
[1765199597091,0.05918,92071.0,92070.0,0.0108604]
[1765199597290,0.05918,92059.0,92058.0,0.06940618]
[1765199597488,0.05918,92059.0,92058.0,0.0695218]
[1765199597793,0.0298,92059.0,92058.0,0.0695218]
[1765199598690,0.0700409,92066.0,92065.0,0.069521]
[1765199599293,0.0700409,92066.0,92065.0,0.040271]
[1765199599989,0.0700409,92066.0,92065.0,0.070521]
[1765199600384,0.05918,92066.0,92065.0,0.070521]
[1765199600590,0.06018,92066.0,92065.0,0.072521]
[1765199603202,0.06018,92066.0,92065.0,0.003]
[1765199603798,0.0700427,92050.0,92041.0,0.02913438]
[1765199603993,0.0700427,92050.0,92041.0,0.0108637]
[1765199604496,0.05918,92037.0,92036.0,0.02913438]
[1765199604694,0.05918,92035.0,92034.0,0.02913438]
[1765199604896,0.05918,92030.0,92029.0,0.0402752]
[1765199605298,0.05918,92030.0,92029.0,0.0695252]
[1765199605498,0.0700451,92030.0,92029.0,0.0695252]
[1765199605797,0.0700451,92030.0,92029.0,0.05866]
[1765199605991,0.0700451,92030.0,92026.0,0.02914241]
[1765199605992,0.0700454,92027.0,92026.0,0.02914241]
[1765199606194,0.07634,92025.0,92024.0,0.0108658]
[1765199606398,0.07634,92025.0,92024.0,0.0402758]
[1765199606793,0.05918,92025.0,92024.0,0.0695258]
[1765199607400,0.06118,92025.0,92024.0,0.0855258]
[1765199608097,0.06218,92025.0,92024.0,0.0945258]
[1765199608903,0.003,92025.0,92024.0,0.0945258]
[1765199609800,0.00016292,92039.0,92024.0,0.1053916]
[1765199610101,0.05918,92032.0,92031.0,0.069525]
[1765199610908,0.0700449,92032.0,92031.0,0.069525]
[1765199611500,0.0700449,92032.0,92031.0,0.083525]
[1765199611703,0.0720449,92032.0,92031.0,0.083525]
[1765199611901,0.0730449,92032.0,92031.0,0.091525]
[1765199612304,0.06218,92032.0,92031.0,0.091525]
[1765199615791,0.07934,92032.0,92031.0,0.022]
[1765199621412,0.07934,92032.0,92031.0,0.01681416]
[1765199625725,0.07834,92032.0,92031.0,0.01]
[1765199626215,0.07734,92032.0,92031.0,0.005]
[1765199641521,0.07734,92032.0,92031.0,0.06095]
[1765199641921,0.07734,92032.0,92031.0,0.005]
[1765199643133,0.07734,92032.0,92031.0,0.03261]
[1765199643532,0.06018,92032.0,92031.0,0.06095]
[1765199644732,0.06018,92032.0,92031.0,0.005]
[1765199644938,0.06018,92032.0,92031.0,0.03322]
[1765199649834,0.06018,92032.0,92031.0,0.005]
[1765199651837,0.06018,92032.0,92031.0,0.03322]
[1765199652038,0.06018,92032.0,92031.0,0.06101]
[1765199655542,0.06018,92032.0,92031.0,0.005]
[1765199656834,0.06018,92032.0,92031.0,0.03225]
[1765199657132,0.06018,92032.0,92031.0,0.06109]
[1765199664635,0.06018,92032.0,92021.0,0.03885535]
[1765199664838,0.06018,92032.0,82476.0,0.05]
[1765199664839,0.00099999,91980.0,91967.0,0.13670526]
[1765199665144,0.00099999,91980.0,91947.0,0.31331556]
[1765199665145,0.0108712,91978.0,91975.0,0.01672]
[1765199665345,0.0108715,91976.0,91975.0,0.04397]
[1765199665643,0.54806142,91976.0,91975.0,0.07281]
[1765199665945,0.54817525,91976.0,91975.0,0.47281]
[1765199666146,0.6066162,91976.0,91975.0,0.41672]
[1765199667341,0.54817525,91976.0,91975.0,0.41672]
[1765199667547,0.55317525,91976.0,91975.0,0.41772]
[1765199667847,0.55321525,91976.0,91975.0,0.41772]
[1765199671349,0.55321525,91976.0,91975.0,0.44497]
[1765199672038,0.0108725,91967.0,91966.0,0.00010946]
[1765199672244,0.0108759,91939.0,91938.0,0.05609]
[1765199672438,0.04066582,91939.0,91938.0,0.05609]
[1765199672639,0.04077965,91939.0,91938.0,0.45609]
[1765199674049,0.04077965,91939.0,91938.0,0.46309]
[1765199674447,0.04277965,91939.0,91938.0,0.47409]
[1765199674948,0.04277965,91939.0,91938.0,0.418]
[1765199675151,0.04277965,91939.0,91938.0,0.018]
[1765199675562,0.04277965,91939.0,91938.0,0.38926537]
[1765199676058,0.04277965,91939.0,91938.0,0.001]
[1765199676249,0.04277965,91939.0,91938.0,0.002]
[1765199676846,0.010877,91929.0,91928.0,0.01672]
[1765199677047,0.04078075,91929.0,91928.0,0.01672]
[1765199677243,0.010878,91921.0,91920.0,0.07281]
[1765199677552,0.51853405,91921.0,91920.0,0.07281]
[1765199677850,0.54832397,91921.0,91920.0,0.07281]
[1765199678650,0.54832397,91921.0,91920.0,0.07681]
[1765199678859,0.55032397,91921.0,91920.0,0.07681]
[1765199679557,0.55032397,91921.0,91920.0,0.07881]
[1765199680256,0.55032397,91921.0,91920.0,0.07681]
[1765199680561,0.55032397,91921.0,91920.0,0.07281]
[1765199680759,0.55032397,91921.0,91920.0,0.47381]
[1765199680760,0.55632397,91921.0,91920.0,0.47381]
[1765199681953,0.74809748,91921.0,91920.0,0.47381]
[1765199682251,0.65138397,91921.0,91920.0,0.47381]
[1765199682652,0.74783697,91921.0,91920.0,0.47381]
[1765199683257,0.65138397,91921.0,91920.0,0.47381]
[1765199684153,0.14382397,91921.0,91920.0,0.07381]
[1765199684462,0.03788597,91921.0,91920.0,0.47381]
[1765199686465,0.13434365,91921.0,91920.0,0.47381]
[1765199686763,0.13434365,91921.0,91920.0,0.3856371]
[1765199686963,0.13434365,91921.0,91920.0,0.5258171]
[1765199687464,0.03788597,91921.0,91920.0,0.5258171]
[1765199687854,0.03788597,91921.0,91920.0,0.14018]
[1765199689351,0.03588597,91921.0,91920.0,0.14018]
[1765199689551,0.13257933,91921.0,91920.0,0.54018]
[1765199689853,0.19103933,91921.0,91920.0,0.14018]
[1765199690155,0.13657933,91921.0,91920.0,0.14018]
[1765199690353,0.03988597,91921.0,91920.0,0.14018]
[1765199690559,0.13666036,91921.0,91920.0,0.08139817]
[1765199690760,0.26290036,91921.0,91920.0,0.08139817]
[1765199691260,0.16612597,91921.0,91920.0,0.06444817]
[1765199691765,0.26299898,91921.0,91920.0,0.06444817]
[1765199692266,0.12624,91918.0,91917.0,0.05936562]
[1765199692466,0.15602992,91918.0,91917.0,0.00032562]
[1765199693264,0.12624,91902.0,91901.0,0.1341103]
[1765199693563,0.15602992,91902.0,91901.0,0.1341103]
[1765199694063,0.12624,91895.0,91894.0,0.1341111]
[1765199694266,0.12624,91895.0,91894.0,0.12323]
[1765199694267,0.15602992,91895.0,91894.0,0.12323]
[1765199694458,0.1561472,91895.0,91894.0,0.12323]
[1765199695765,0.1561472,91895.0,91894.0,0.06419]
[1765199696067,0.12624,91879.0,91878.0,0.12323]
[1765199696269,0.15615488,91879.0,91878.0,0.12323]
[1765199696864,0.12624,91868.0,91867.0,0.1341143]
[1765199697064,0.10763522,91868.0,91867.0,0.1341143]
[1765199697666,0.02978992,91868.0,91867.0,0.1341143]
[1765199697864,0.10763522,91868.0,91867.0,0.1341143]
[1765199698065,0.23387522,91868.0,91867.0,0.1341143]
[1765199698263,0.09424992,91868.0,91867.0,0.12323]
[1765199698462,0.15602992,91868.0,91867.0,0.12323]
[1765199698660,0.23384198,91868.0,91867.0,0.12323]
[1765199699164,0.17206198,91868.0,91867.0,0.12323]
[1765199699561,0.10224992,91868.0,91867.0,0.12323]
[1765199699763,0.17082992,91868.0,91867.0,0.12423]
[1765199700363,0.18171422,91868.0,91867.0,0.06519]
[1765199700560,0.18171422,91868.0,91867.0,0.13182]
[1765199700872,0.17082992,91868.0,91867.0,0.1427044]
[1765199701058,0.17082992,91868.0,91867.0,0.13182]
[1765199701259,0.17082992,91868.0,91867.0,0.13082]
[1765199701459,0.17182992,91868.0,91867.0,0.13082]
[1765199702171,0.03878992,91868.0,91867.0,0.1417044]
[1765199702858,0.11083992,91868.0,91867.0,0.1417044]
[1765199704275,0.03878992,91868.0,91867.0,0.1417044]
[1765199705168,0.17941992,91868.0,91867.0,0.1417044]
[1765199705474,0.17941992,91868.0,91867.0,0.13082]
[1765199707370,0.11083992,91868.0,91867.0,0.13082]
[1765199707982,0.17941992,91868.0,91867.0,0.13082]
[1765199708165,0.03878992,91868.0,91867.0,0.13082]
[1765199708370,0.03341473,91868.0,91867.0,0.13082]
[1765199711681,0.03225313,91868.0,91867.0,0.13082]
[1765199716776,0.0078384,91868.0,91867.0,0.13082]
[1765199717573,0.0001632,91877.0,91876.0,0.1441833]
[1765199718785,0.0121632,91877.0,91876.0,0.1441833]
[1765199720085,0.233651,91896.0,91895.0,0.1441811]
[1765199720292,0.16909857,91896.0,91895.0,0.1441811]
[1765199720487,0.1976681,91896.0,91895.0,0.1441811]
[1765199720787,0.1177571,91896.0,91895.0,0.1441811]
[1765199720978,0.11784507,91896.0,91895.0,0.1441811]
[1765199721181,0.18687507,91896.0,91895.0,0.1441811]
[1765199721681,0.19087507,91896.0,91895.0,0.1441811]
[1765199721873,0.05611507,91896.0,91895.0,0.1441811]
[1765199722277,0.03454554,91896.0,91895.0,0.1461811]
[1765199722481,0.03054554,91896.0,91895.0,0.1461811]
[1765199722675,0.03054554,91896.0,91895.0,0.1471811]
[1765199722990,0.16030554,91896.0,91895.0,0.1501811]
[1765199723577,0.09127554,91896.0,91895.0,0.1501811]
[1765199723781,0.02554554,91896.0,91895.0,0.1501811]
[1765199724390,0.18887507,91896.0,91895.0,0.1501811]
[1765199725392,0.02554554,91896.0,91895.0,0.1501811]
[1765199729493,0.00208797,91896.0,91895.0,0.1501811]
[1765199731090,0.0001632,91905.0,91904.0,0.14418]
[1765199732384,0.04288,91931.0,91919.0,0.1441782]
[1765199732385,0.0108781,91920.0,91919.0,0.1441782]
[1765199732588,0.0799079,91922.0,91921.0,0.1333]
[1765199732792,0.13476,91916.0,91915.0,0.06976]
[1765199733192,0.13476,91916.0,91915.0,0.1333]
[1765199734495,0.13476,91916.0,91915.0,0.1343]
[1765199735196,0.13576,91916.0,91915.0,0.1413]
[1765199735587,0.13576,91916.0,91915.0,0.1333]
[1765199735788,0.13576,91916.0,91915.0,0.1413]
[1765199736799,0.13476,91916.0,91915.0,0.1333]
[1765199736997,0.13576,91916.0,91915.0,0.1413]
[1765199738102,0.16432953,91916.0,91915.0,0.1413]
[1765199738301,0.16332953,91916.0,91915.0,0.1333]
[1765199738501,0.16432953,91916.0,91915.0,0.1413]
[1765199738799,0.13576,91916.0,91915.0,0.1413]
[1765199739099,0.13476,91893.0,91892.0,0.1333]
[1765199740292,0.1456406,91899.0,91898.0,0.1333]
[1765199740986,0.1456406,91899.0,91898.0,0.1441807]
[1765199740987,0.13476,91899.0,91898.0,0.1441807]
[1765199741898,0.13676,91899.0,91898.0,0.1551807]
[1765199743794,0.13676,91899.0,91898.0,0.1443]
[1765199745493,0.15428603,91899.0,91898.0,0.1443]
[1765199747896,0.13676,91899.0,91898.0,0.1443]
[1765199750397,0.15428603,91899.0,91898.0,0.1443]
[1765199751398,0.13676,91899.0,91898.0,0.011]
[1765199751596,0.13676,91899.0,91871.0,0.00984451]
[1765199751597,0.1736324,91884.0,91871.0,0.00984451]
[1765199751805,0.1736324,91884.0,91870.0,0.0108839]
[1765199751998,0.1736324,91884.0,91860.0,0.08399143]
[1765199751999,0.12156,91861.0,91860.0,0.0716451]
[1765199752194,0.12156,91861.0,91860.0,0.1343051]
[1765199752408,0.1736351,91861.0,91860.0,0.1343051]
[1765199752603,0.16275,91861.0,91860.0,0.1343051]
[1765199753103,0.06071,91861.0,91860.0,0.1343051]
[1765199753309,0.0715944,91867.0,91866.0,0.12342]
[1765199753494,0.1324444,91867.0,91866.0,0.12342]
[1765199754602,0.1354444,91867.0,91866.0,0.13742]
[1765199755205,0.003,91867.0,91866.0,0.1483045]
[1765199755504,0.004,91867.0,91866.0,0.1553045]
[1765199755705,0.12156,91889.0,91866.0,0.021]
[1765199756003,0.0108821,91887.0,91886.0,0.134302]
[1765199756308,0.1324421,91887.0,91886.0,0.12342]
[1765199757294,0.12156,91887.0,91886.0,0.12342]
[1765199757497,0.002,91887.0,91886.0,0.13142]
[1765199758710,0.002,91887.0,91886.0,0.13342]
[1765199760514,0.134442,91887.0,91886.0,0.13342]
[1765199761707,0.134442,91887.0,91886.0,0.1443021]
[1765199761907,0.134442,91887.0,91886.0,0.13342]
[1765199762808,0.002,91887.0,91886.0,0.13342]
[1765199766318,0.012882,91887.0,91886.0,0.13342]
[1765199766814,0.131342,91887.0,91886.0,0.13342]
[1765199767403,0.002,91887.0,91886.0,0.13342]
[1765199768414,0.12128,91887.0,91886.0,0.13342]
[1765199769608,0.12128,91887.0,91886.0,0.07266]
[1765199770012,0.12128,91887.0,91886.0,0.13352]
[1765199770315,0.12128,91887.0,91886.0,0.01]
[1765199772310,0.12063,91878.0,91877.0,0.0583333]
[1765199772509,0.1315131,91878.0,91877.0,0.1173633]
[1765199772907,0.002,91887.0,91877.0,0.1173633]
[1765199772908,0.11907,91887.0,91886.0,0.11527]
[1765199773608,0.11707,91887.0,91886.0,0.11527]
[1765199773916,0.127952,91887.0,91886.0,0.11527]
[1765199774319,0.129952,91887.0,91886.0,0.12427]
[1765199774919,0.129952,91887.0,91886.0,0.12627]
[1765199776124,0.129952,91887.0,91886.0,0.06724]
[1765199780229,0.129952,91887.0,91886.0,0.011]
[1765199781236,0.1279531,91878.0,91877.0,0.0001633]
[1765199781420,0.0688528,91881.0,91877.0,0.0001633]
[1765199781612,0.05797,91881.0,91880.0,0.11527]
[1765199782229,0.11907,91887.0,91886.0,0.11527]
[1765199782930,0.11707,91887.0,91886.0,0.11527]
[1765199783724,0.11907,91887.0,91886.0,0.11527]
[1765199783929,0.11907,91887.0,91886.0,0.11727]
[1765199792957,0.11907,91887.0,91886.0,0.05824]
[1765199793258,0.002,91887.0,91886.0,0.1281521]
[1765199793851,0.0001633,91896.0,91895.0,0.0108811]
[1765199794054,0.0001633,91896.0,91895.0,0.1261511]
[1765199795156,0.0108794,91909.0,91895.0,0.1261511]
[1765199795157,0.11707,91909.0,91908.0,0.1261495]
[1765199795345,0.1279487,91915.0,91914.0,0.1261488]
[1765199796168,0.11707,91915.0,91914.0,0.1261488]
[1765199796861,0.12407,91915.0,91914.0,0.1261488]
[1765199797959,0.06497,91915.0,91914.0,0.1261488]
[1765199798258,0.12407,91915.0,91914.0,0.1261488]
[1765199798459,0.11707,91915.0,91914.0,0.1261488]
[1765199798663,0.12307,91915.0,91914.0,0.1261488]
[1765199798851,0.12307,91915.0,91914.0,0.1271488]
[1765199799055,0.11707,91915.0,91914.0,0.1271488]
[1765199799249,0.12307,91915.0,91914.0,0.1271488]
[1765199799459,0.12307,91915.0,91914.0,0.1261488]
[1765199799655,0.11707,91915.0,91914.0,0.001]
[1765199799863,0.12207,91915.0,91914.0,0.001]
[1765199800255,0.11707,91915.0,91914.0,0.001]
[1765199800466,0.12207,91915.0,91914.0,0.001]
[1765199800656,0.1279498,91906.0,91905.0,0.00016321]
[1765199801956,0.11707,91889.0,91888.0,0.1261518]
[1765199803663,0.11005,91886.0,91885.0,0.1179922]
[1765199804159,0.0108823,91885.0,91881.0,0.05337]
[1765199804363,0.11005,91885.0,91884.0,0.0108824]
[1765199804566,0.11005,91885.0,91884.0,0.1179924]
[1765199806065,0.11605,91885.0,91884.0,0.1179924]
[1765199806870,0.11705,91885.0,91884.0,0.1179924]
[1765199808363,0.11605,91885.0,91884.0,0.1179924]
[1765199809061,0.006,91885.0,91884.0,0.1179924]
[1765199809460,0.06073,91885.0,91884.0,0.1179924]
[1765199809660,0.006,91885.0,91884.0,0.1179924]
[1765199810756,0.006,91885.0,91879.0,0.00016321]
[1765199810757,0.1551728,91880.0,91879.0,0.00016321]
[1765199810964,0.1551728,91880.0,91856.0,0.0108856]
[1765199810965,0.11005,91865.0,91864.0,0.10711]
[1765199811269,0.11005,91865.0,91864.0,0.1179947]
[1765199811664,0.1209346,91865.0,91864.0,0.1179947]
[1765199813074,0.1239346,91865.0,91864.0,0.1179947]
[1765199813757,0.1239346,91865.0,91864.0,0.1229947]
[1765199814756,0.11305,91865.0,91864.0,0.1229947]
[1765199819872,0.11305,91865.0,91864.0,0.05837]
[1765199820275,0.11305,91865.0,91864.0,0.005]
[1765199825175,0.1391457,91856.0,91855.0,0.04984803]
[1765199825882,0.1391457,91856.0,91855.0,0.10085803]
[1765199826373,0.1401457,91856.0,91855.0,0.10685803]
[1765199826576,0.1401457,91856.0,91855.0,0.05584803]
[1765199827180,0.107827,91845.0,91844.0,9.644e-05]
[1765199828486,0.09694,91845.0,91844.0,9.644e-05]
[1765199828781,0.10194,91845.0,91844.0,0.10260644]
[1765199829180,0.10194,91845.0,91844.0,9.644e-05]
[1765199830084,0.10394,91845.0,91844.0,9.644e-05]
[1765199833172,0.10394,91845.0,91831.0,0.0108886]
[1765199833173,0.05551,91845.0,91831.0,0.0108886]
[1765199833387,0.10696,91818.0,91817.0,0.10509]
[1765199833783,0.10696,91818.0,91817.0,0.0108903]
[1765199834282,0.10706076,91818.0,91817.0,0.0108903]
[1765199834587,0.11006076,91818.0,91817.0,0.0108903]
[1765199835183,0.10696,91814.0,91813.0,0.1159807]
[1765199835378,0.10696,91814.0,91813.0,0.0108907]
[1765199835780,0.10696,91814.0,91813.0,0.0622207]
[1765199837182,0.10696,91814.0,91813.0,0.0108907]
[1765199837490,0.05248,91797.0,91796.0,0.1159827]
[1765199838298,0.10696,91797.0,91796.0,0.1159827]
[1765199838586,0.10706537,91797.0,91796.0,0.1159827]
[1765199838982,0.11006537,91797.0,91796.0,0.1159827]
[1765199839181,0.11106537,91797.0,91796.0,0.1229827]
[1765199839593,0.11106537,91797.0,91796.0,0.007]
[1765199839783,0.11006537,91797.0,91796.0,0.0108928]
[1765199839983,0.11106537,91797.0,91796.0,0.0178928]
[1765199840282,0.11106537,91797.0,91792.0,0.0108932]
[1765199840283,0.10696,91793.0,91792.0,0.0108932]
[1765199841683,0.10696,91776.0,91775.0,0.1159852]
[1765199841880,0.10706537,91776.0,91775.0,0.1159852]
[1765199842092,0.00010537,91776.0,91775.0,0.1159852]
[1765199843090,0.10706537,91776.0,91775.0,0.1159852]
[1765199843293,0.13921537,91776.0,91775.0,0.1229852]
[1765199843480,0.10806537,91776.0,91775.0,0.1229852]
[1765199843684,0.00110537,91776.0,91775.0,0.1229852]
[1765199844100,0.05658537,91776.0,91775.0,0.1229852]
[1765199844297,0.00410537,91776.0,91775.0,0.1229852]
[1765199844595,0.00310537,91776.0,91775.0,0.1159852]
[1765199844795,0.00410537,91776.0,91775.0,0.1179852]
[1765199844993,0.05658537,91776.0,91775.0,0.1179852]
[1765199845187,0.11106537,91776.0,91775.0,0.1179852]
[1765199845390,0.14221537,91776.0,91775.0,0.002]
[1765199845590,0.14221537,91776.0,91775.0,0.10709]
[1765199846590,0.14221537,91776.0,91775.0,0.002]
[1765199847097,0.13921537,91776.0,91775.0,0.002]
[1765199847297,0.14221537,91776.0,91775.0,0.002]
[1765199848298,0.13811,91768.0,91762.0,0.0108968]
[1765199848486,0.1490061,91768.0,91762.0,0.0108968]
[1765199849199,0.1490061,91768.0,91764.0,0.0108965]
[1765199849685,0.1490061,91768.0,91760.0,0.010897]
[1765199849891,0.1490061,91768.0,91763.0,0.0108966]
[1765199850091,0.1490061,91768.0,91767.0,0.05140917]
[1765199850393,0.14111,91768.0,91767.0,0.06230537]
[1765199850693,0.14111,91768.0,91767.0,0.11606537]
[1765199851089,0.003,91768.0,91767.0,0.11606537]
[1765199851607,0.004,91768.0,91767.0,0.11906537]
[1765199851903,0.11096,91768.0,91767.0,0.11906537]
[1765199852700,0.004,91768.0,91767.0,0.11906537]
[1765199852901,0.14211,91768.0,91767.0,0.11906537]
[1765199853205,0.004,91768.0,91767.0,0.11906537]
[1765199853702,0.05648,91768.0,91767.0,0.11906537]
[1765199854500,0.14211,91768.0,91767.0,0.11906537]
[1765199855002,0.004,91768.0,91767.0,0.11906537]
[1765199855206,0.05648,91768.0,91767.0,0.11906537]
[1765199855595,0.11096,91768.0,91767.0,0.11906537]
[1765199856400,0.11096,91768.0,91767.0,0.00307917]
[1765199856401,0.14211,91768.0,91767.0,0.00307917]
[1765199857417,0.10696,91747.0,91746.0,0.0622287]
[1765199857706,0.10696,91747.0,91746.0,0.0108987]
[1765199858302,0.10696,91745.0,91744.0,0.05]
[1765199859908,0.11786,91735.0,91734.0,0.00021802]
[1765199860803,0.05248,91735.0,91734.0,0.10530802]
[1765199861204,0.10696,91735.0,91734.0,0.00021802]
[1765199861406,0.10796,91735.0,91734.0,0.00221802]
[1765199861704,0.11096,91735.0,91734.0,0.00221802]
[1765199863402,0.11096,91735.0,91734.0,0.05540802]
[1765199863907,0.11096,91735.0,91734.0,0.00221802]
[1765199864409,0.11096,91735.0,91721.0,0.02]
[1765199864410,0.403,91735.0,91721.0,0.02]
[1765199864706,0.0317,91700.0,91696.0,0.0109046]
[1765199864898,0.09829,91697.0,91696.0,0.0109046]
[1765199865211,0.09829,91696.0,91674.0,0.0234]
[1765199865511,0.09829,91696.0,91688.0,0.0109056]
[1765199866011,0.09829,91696.0,91691.0,0.0109052]
[1765199866209,0.09829,91696.0,91677.0,0.0109068]
[1765199866506,8.363e-05,91697.0,91696.0,0.1167647]
[1765199866896,0.00016349,91707.0,91706.0,0.1167635]
[1765199867806,0.002,91735.0,91727.0,0.010901]
[1765199867807,0.04821,91728.0,91727.0,0.010901]
[1765199868001,0.09837073,91728.0,91727.0,0.116761]
[1765199868904,0.10237073,91728.0,91727.0,0.116761]
[1765199869102,0.01008073,91728.0,91727.0,0.116761]
[1765199870702,0.00908073,91728.0,91727.0,0.116761]
[1765199872009,0.00908073,91728.0,91727.0,0.516761]
[1765199872513,0.12999,91760.0,91759.0,0.0108972]
[1765199873012,0.12999,91760.0,91759.0,0.1167572]
[1765199873908,0.13699,91760.0,91759.0,0.0640872]
[1765199874411,0.10529,91760.0,91759.0,0.1167572]
[1765199874608,0.11829,91760.0,91759.0,0.10586]
[1765199874808,0.09829,91752.0,91751.0,0.10586]
[1765199875012,0.12999,91751.0,91750.0,0.00016347]
[1765199876005,0.12999,91751.0,91750.0,0.10602347]
[1765199876200,0.13899,91751.0,91750.0,0.10602347]
[1765199876401,0.05721,91751.0,91750.0,0.10602347]
[1765199876913,0.10729,91751.0,91750.0,0.10602347]
[1765199877212,0.13899,91751.0,91750.0,0.10602347]
[1765199878016,0.14399,91751.0,91750.0,0.00116347]
[1765199878910,0.14399,91751.0,91750.0,0.10432347]
[1765199879214,0.014,91751.0,91750.0,0.10432347]
[1765199879415,0.14172,91751.0,91750.0,0.10294347]
[1765199879611,0.014,91751.0,91750.0,0.10294347]
[1765199881522,0.012,91751.0,91750.0,0.10294347]
[1765199881706,0.003,91751.0,91750.0,0.10294347]
[1765199881912,0.006,91751.0,91750.0,0.10294347]
[1765199883316,0.00016347,91769.0,91768.0,0.10178]
[1765199883511,0.00016347,91769.0,91768.0,0.1126761]
[1765199884510,0.00616347,91769.0,91768.0,0.1136761]
[1765199884910,0.01416347,91769.0,91768.0,0.1136761]
[1765199885315,0.00616347,91769.0,91768.0,0.1136761]
[1765199885618,0.00816347,91769.0,91768.0,0.1136761]
[1765199885913,0.00216347,91769.0,91768.0,0.1126761]
[1765199886122,0.1304,91784.0,91783.0,0.1126743]
[1765199887216,0.1334,91784.0,91783.0,0.1136743]
[1765199887618,0.003,91784.0,91783.0,0.1136743]